Cogmind - Beta 15 @@@ ROGUE MODE // 2025.06.16 @ 12:53:37 Player: Fenodyree Result: Self-destructed Performance ------------- Evolutions (1) 500 Regions Visited (2) 400 Robots Destroyed (14) 70 Value Destroyed (295) 295 Prototype IDs (0) 0 Alien Tech Used (0) 0 Bonus (0) 0 TOTAL SCORE: 1265 Bonus ------- None Cogmind --------- Core Integrity 157/400 Matter 290/300 Energy 68/100 System Corruption 2% Temperature Warning (385) Movement Hovering (60) Location -9/Materials Parts ------- > --- POWER (1) -------- (None) > --- PROPULSION (3) --- Airjet > --- UTILITY (3) ------ (None) > --- WEAPON (2) ------- (None) > --- INVENTORY (5) ---- Airjet Airjet Improved Terrain Scanner Seismic Detector Improved Targeting Computer Peak State ------------ > --- POWER ------------ Ion Engine > --- PROPULSION ------- Light Treads Light Treads Airjet > --- UTILITY ---------- Improved Heat Sink Large Storage Unit Hardened Light Armor Plating > --- WEAPON ----------- Medium Laser Particle Gun > --- INVENTORY -------- Airjet Airjet Airjet Improved Terrain Scanner Seismic Detector Improved Targeting Computer Improved Targeting Computer Improved Targeting Computer Improved Targeting Computer Improved Weapon Shielding Medium Armor Plating Small Laser Grenade Launcher Mining Laser Mace [Rating: 18] Favorites ----------- Power Ion Engine Engine Ion Engine Propulsion Light Treads Treads Light Treads Wheel Wheel Hover Unit Airjet Utility Hardened Light Armor Plating Device Improved Heat Sink Storage Small Storage Unit Protection Hardened Light Armor Plating Weapon Medium Laser Energy Gun Medium Laser Slashing Weapon Katana Build | -11 -10 -9 ------- Run | Yrd Mat Mat Slots Evolved 2 | . . 2 Power . | . . . Propulsion 1 | . . 1 Utility 1 | . . 1 Weapon . | . . . Parts Attached 20 | 8 4 8 Power 2 | 1 1 . Engine 2 | 1 1 . Core . | . . . Reactor . | . . . Propulsion 6 | 2 1 3 Treads 2 | . 1 1 Leg . | . . . Wheel 2 | 2 . . Hover 2 | . . 2 Flight . | . . . Utility 6 | 2 . 4 Device 2 | 1 . 1 Storage 2 | 1 . 1 Processor . | . . . Hackware . | . . . Protection 2 | . . 2 Artifact . | . . . Weapon 6 | 3 2 1 Energy Gun 5 | 3 2 . Energy Cannon . | . . . Ballistic Gun . | . . . Ballistic Cannon . | . . . Launcher . | . . . Special Weapon . | . . . Impact Weapon . | . . . Slashing Weapon 1 | . . 1 Piercing Weapon . | . . . Special Melee Weapon . | . . . Unidentified Prototypes . | . . . Parts Lost 15 | . 3 12 Power 2 | . 1 1 Propulsion 5 | . 1 4 Utility 3 | . . 3 Weapon 5 | . 1 4 Highest Loss Streak 11 | . 1 11 To Critical Strikes . | . . . Average Backups 9 | 1 6 11 Power . | . . . Propulsion 1 | . 1 1 Utility 4 | . 2 6 Weapon 3 | . 2 3 Tool/Special . | . . . Unused Backups 12 | . . 12 Power . | . . . Propulsion 2 | . . 2 Utility 7 | . . 7 Weapon 3 | . . 3 Tool/Special . | . . . Average Slot Usage (%) 92 | . 95 92 Engine 11 | . 12 11 Treads 16 | . 7 19 Wheel 5 | . 17 1 Hover 4 | . . 6 Device 11 | . 14 10 Storage 11 | . 14 11 Protection 7 | . . 10 Energy Gun 23 | . 28 21 Peak Build Rating 18 | 9 10 18 Average Rating 12 | 5 9 15 On Entrance 6 | . 9 10 Naked Turns . | . . . Heaviest Build 36 | 14 16 36 Greatest Support 40 | 20 20 40 Greatest Overweight (x) 4 | 4 1 2 Average Overweight (x) . | 1 . . Largest Inventory Capacity 15 | 8 8 15 Average Capacity 11 | 7 8 12 Most Carried 15 | 5 7 15 Average Carried 9 | 1 6 11 Final Capacity 8 | 8 8 5 Final Carried 7 | 5 7 5 Class Distribution -------------------- 100% | Mutant Dominant Class ---------------- Mutant | -10/Materials Mutant | -9/Materials Resources | -11 -10 -9 ----------- Run | Yrd Mat Mat Matter Collected 335 | 269 41 25 Remotely . | . . . Salvage Created 393 | 99 169 125 Parts 29 | 10 12 7 Haulers Intercepted . | . . . Recyclers Shooed . | . . . Parts Field Recycled . | . . . Retrieved Matter . | . . . Parts Self-Destructed . | . . . Prevented . | . . . Kills | -11 -10 -9 ------- Run | Yrd Mat Mat Combat Hostiles Destroyed 10 | . 7 3 Guns 9 | . 6 3 AOE 1 | . 1 . Classes Destroyed 6 | 2 2 2 Worker 1 | . . 1 Tunneler 2 | 2 . . Recycler 1 | 1 . . Swarmer 5 | . 5 . Grunt 4 | . 2 2 Sentry 1 | . . 1 Best Kill Streak 3 | 3 3 2 Combat Bots Only 3 | . 3 2 Max Kills in Single Turn 1 | 1 1 1 Gunslinging . | . . . Exploded 1 | . 1 . Melee . | . . . Uniques/NPCs Destroyed . | . . . Combat | -11 -10 -9 -------- Run | Yrd Mat Mat Hostile Shots Fired 157 | . 51 106 Missed 24 | . 9 15 Hits 133 | . 42 91 Melee 3 | . . 3 Projectile 130 | . 42 88 Critical Strikes 4 | . . 4 Damage Taken 1774 | . 562 1212 Core 481 | . 238 243 Absorbed by Shields . | . . . Core Remaining (%) 52 | 100 4 . Volleys Fired 50 | 6 22 22 Largest 2 | 2 2 2 Hottest 115 | 90 90 115 Shots Fired 90 | 12 34 44 Gun 90 | 12 34 44 Cannon . | . . . Launcher . | . . . Special . | . . . Kinetic . | . . . Thermal 90 | 12 34 44 Explosive . | . . . Electromagnetic . | . . . Robot Hit Streak 12 | 6 12 6 Robot Miss Streak 7 | 1 7 5 Penetration Max . | . . . Secondary Targets 2 | . . 2 Max Gunslinging Chain 1 | . . 1 Shots Hit Robots 49 | 8 16 25 Core Hits 20 | 4 8 8 Critical Kills . | . . . Critical Parts Destroyed . | . . . Critical Strikes . | . . . Melee Attacks 4 | . . 4 Impact . | . . . Slashing 4 | . . 4 Piercing . | . . . Sneak Attacks . | . . . Combat Hostiles . | . . . Follow-up Attacks . | . . . Damage Inflicted 804 | 104 315 385 Guns 623 | 104 205 314 Cannons . | . . . Explosions 110 | . 110 . Melee 71 | . . 71 Ramming . | . . . Kinetic . | . . . Thermal 623 | 104 205 314 Explosive 110 | . 110 . Electromagnetic . | . . . Impact . | . . . Slashing 71 | . . 71 Piercing . | . . . Highest Corruption 2 | . . 2 Average Corruption 2 | . . 2 Corruption Purged . | . . . Corruption Blocked . | . . . Overload Shots . | . . . Overflow Damage 35 | . 35 . Projectiles . | . . . Explosions 35 | . 35 . Melee . | . . . Knockbacks . | . . . Impact . | . . . Kinetic . | . . . Secondary . | . . . Self-Inflicted Damage 190 | . 190 . Shots 2 | . 2 . Rammed . | . . . Targets Rammed . | . . . Kicked . | . . . Crushed . | . . . Highest Temperature 544 | 120 206 544 Average Temperature 132 | 54 83 189 Received Heat Transfer 621 | . 66 555 Effects 5 | . 1 4 Shutdowns 1 | . . 1 Energy Bleed 2 | . 1 1 Damage (minor) 1 | . . 1 Damage (major) 1 | . . 1 Siege Activations . | . . . Martial Activations . | . . . Shielding Activations . | . . . Robots Disrupted . | . . . Combat Hostiles . | . . . Robots Corrupted . | . . . Combat Hostiles . | . . . Parts Fried . | . . . Impact Corruptions . | . . . Robots Melted . | . . . Combat Hostiles . | . . . Parts Melted 2 | . . 2 Heat Transferred 1633 | 273 545 815 Parts Sabotaged . | . . . Parts Stolen . | . . . Parts Stripped . | . . . Power Chain Reactions . | . . . Alert | -11 -10 -9 ------- Run | Yrd Mat Mat Maximum Alert Level . | . . . Low Security (%) 100 | 100 100 100 Level 1 . | . . . Level 2 . | . . . Level 3 . | . . . Level 4 . | . . . Level 5 . | . . . High Security . | . . . Max Security . | . . . Peak Influence 131 | 15 131 67 Initial 42 | . 3 42 Average 24 | 2 74 9 Influence Increases 402 | 15 226 161 Destroy 0b10 Robot/C 200 | . 140 60 Destroy 0b10 Robot/NC 20 | 15 . 5 Destroy Leader 40 | . 20 20 Successful Hack 5 | . 5 . Disable Machine 45 | . 45 . Destroy Structure 17 | . 16 1 Lose Combat Pursuer 75 | . . 75 Influence Decreases 402 | 10 130 262 Entered New Map 61 | . 2 59 Time Decay 215 | 10 98 107 Lost Part 126 | . 30 96 Squads Dispatched 2 | . . 2 Investigation . | . . . Extermination . | . . . Reinforcement 2 | . . 2 Assault . | . . . Garrison . | . . . Intercept . | . . . Searches Triggered . | . . . Construction Impeded . | . . . Haulers Reinforced . | . . . Active Scanning Responses . | . . . Cargo Convoy Interrupts . | . . . Stealth | -11 -10 -9 --------- Run | Yrd Mat Mat Distress Signals 2 | . . 2 Communications Jammed . | . . . Distress Signals . | . . . Times Spotted 29 | . 10 19 Peak Tracking Total 11 | . 3 11 Tactical Retreats 3 | . . 3 Traps | -11 -10 -9 ------- Run | Yrd Mat Mat Traps Triggered . | . . . Indirectly . | . . . Trap Hack Attempts . | . . . Triggered . | . . . Disarmed . | . . . Reprogrammed . | . . . Reused . | . . . Traps Extracted . | . . . Installed . | . . . Triggered . | . . . Machines | -11 -10 -9 ---------- Run | Yrd Mat Mat Machines Disabled 3 | . 3 . Max in Single Turn 3 | . 3 . Machines Repaired . | . . . Machines Dismantled . | . . . Machines Sabotaged . | . . . Overloaded Fab Kills . | . . . Hacking | -11 -10 -9 --------- Run | Yrd Mat Mat Machines Accessed 3 | . 2 1 Terminals 3 | . 2 1 Fabricators . | . . . Repair Stations . | . . . Recycling Units . | . . . Scanalyzers . | . . . Garrison Access . | . . . Total Hacks 8 | . 7 1 Successful 3 | . 3 . Failed 5 | . 4 1 Catastrophic . | . . . Database Lockouts . | . . . Manual 8 | . 7 1 Terminals 8 | . 7 1 Fabricators . | . . . Repair Stations . | . . . Recycling Units . | . . . Scanalyzers . | . . . Garrison Access . | . . . Terminal Hacks 1 | . 1 . Robot Analysis 1 | . 1 . Fabricator Hacks . | . . . Repair Station Hacks . | . . . Recycling Unit Hacks . | . . . Scanalyzer . | . . . Garrison Access Hacks . | . . . Unauthorized Hacks 2 | . 2 . Terminals 2 | . 2 . Botnet 2 | . 2 . Fabricators . | . . . Repair Stations . | . . . Recycling Units . | . . . Scanalyzers . | . . . Garrison Access . | . . . Data Cores Recovered . | . . . Used . | . . . Hacking Detections 3 | . 2 1 Full Trace Events 1 | . 1 . Feedback Events . | . . . Feedback Blocked . | . . . Robot Schematics Acquired . | . . . Robots Built . | . . . Authchips . | . . . Time . | . . . Total Robot Build Rating . | . . . Part Schematics Acquired . | . . . Parts Built . | . . . Authchips . | . . . Time . | . . . Total Part Build Rating . | . . . Parts Repaired . | . . . Time . | . . . Parts Recycled . | . . . Recycled Matter . | . . . Retrieved Matter . | . . . Retrieved Components . | . . . Parts Scanalyzed . | . . . Part Schematics Acquired . | . . . Parts Damaged . | . . . Bothacking | -11 -10 -9 ------------ Run | Yrd Mat Mat Used RIF Installer . | . . . Robots Hacked . | . . . Non-combat . | . . . Combat . | . . . Robot Hacks Applied . | . . . Relay Couplers Released . | . . . Fabnet Peak Effective % . | . . . Robots Rewired . | . . . Allies Hacked . | . . . Hacks Repelled . | . . . Allies | -11 -10 -9 -------- Run | Yrd Mat Mat Total Allies . | . . . Largest Group . | . . . Highest-Rated Group . | . . . Highest-Rated Ally . | . . . Total Orders . | . . . Ally Attacks . | . . . Total Damage . | . . . Kills . | . . . Allies Corrupted . | . . . Allies Melted . | . . . Intel | -11 -10 -9 ------- Run | Yrd Mat Mat Active Infowar (turns) 312 | 12 206 94 Terrain 312 | 12 206 94 Robot Analysis Total 1 | . 1 . Derelict Logs Recovered . | . . . Drone Launches . | . . . Drone Recoveries . | . . . Exploration | -11 -10 -9 ------------- Run | Yrd Mat Mat Turns Passed 826 | 94 206 526 Spaces Moved 417 | 51 116 250 Core 27 | 27 . . Treads 264 | . 56 208 Legs . | . . . Wheels 126 | 24 60 42 Hover . | . . . Flight . | . . . Fastest Speed 50 | 50 80 95 Average Speed 140 | 116 123 153 Slowest Speed 250 | 250 160 240 Overloaded Moves . | . . . Propulsion Burnouts . | . . . Robots Hopped . | . . . Potential Cave-ins . | . . . Cave-ins Triggered . | . . . Exploration Rate (%) 22 | 4 38 24 Regions Visited 2 Branch Regions . Pre-discovered Areas . | . . . Known Exits Taken . | . . . Unknown Exits Taken 2 | 1 1 . Scrap Searched . | . . . Spaces Dug . | . . . Terrain Destroyed 26 | . 26 . Melee . | . . . Projectile . | . . . AOE 26 | . 26 . Terrain Rammed . | . . . Walls Destroyed . | . . . Machines Disabled . | . . . Actions | -11 -10 -9 --------- Run | Yrd Mat Mat Total 556 | 70 144 342 Wait 42 | . . 42 Move 415 | 50 115 250 Hop . | . . . Pick Up 19 | 5 3 11 Fast Attach 11 | 8 1 2 Attach 7 | . 2 5 Detach . | . . . Swap 3 | . 1 2 Drop 5 | 1 . 4 Fire 50 | 6 22 22 Melee 4 | . . 4 Ram . | . . . Kick . | . . . Crush . | . . . Escape Stasis . | . . . Rewire . | . . . Trap . | . . . Miscellaneous . | . . . Route ------- -11/Scrapyard -10/Materials (discovered 2 exits: *Mat / [Min]) -9/Materials History --------- Turn | Location | Event 7 | -11/Scrapyard | Discovered new exit (range 16) 95 | -11/Scrapyard | Entered Materials 142 | -10/Materials | Core integrity fell below 50% 184 | -10/Materials | Core integrity fell below 20% 243 | -10/Materials | Discovered new exit (range 13) 286 | -10/Materials | Discovered new exit (range 9) 301 | -10/Materials | Entered another Materials area 301 | -9/Materials | Evolved 2 slots: Propulsion x1, Utility x1 330 | -9/Materials | Build established: Mutant 826 | -9/Materials | Core integrity fell below 50% 827 | -9/Materials | Self-destructed Last Messages --------------- Mercenary. 00812_ K-01 Serf collects debris. 00813_ K-01 Serf suffers critical hit (Burn). 00813_ K-01 Serf destroyed. 00814_ Overheating: Med. Armor Plating damaged (-32). 00814_ Sml. Laser destroyed. 00815_ Critical hit (Smash). 00815_ Med. Armor Plating destroyed. 00815_ System corrupted by crushing effect (+2). 00816_ Particle Gun destroyed. 00817_ Power failure, Ion Engine shutdown. 00817_ Hrd. Light Armor Plating destroyed. 00818_ Overheating: Lgt. Treads damaged (-8). 00820_ Lgt. Treads destroyed. 00821_ Ion Engine destroyed. 00823_ Airjet destroyed. 00824_ Overheating: Energy bleed (-17). 00824_ Katana destroyed. 00827_ Dropped Lrg. Storage Unit. Map ----- +----------------------------------------------------+ | ?????????????????????????????????????????????????? | | ?????????????????????????????????????????????????? | | ?????????????????????????????????????????????????? | | ?????????????????????????????????????????????????? | | ?????????????????????????????????????????????????? | | ?????????????????????????????????????????????????? | | ?????????????????????????????????????????????????? | | ?????????????????????????????????????????????????? | | ?????????????????????????????????????????????????? | | ??????????????????????????????????????????? #???? | | ?????????????????????????????????????????? #??? | | ?????????????????????????????????????????? #??? | | ?????????????????????????????????????????? #??? | | ????????????????????????????????##?#??????# #??? | | ????????????????????????????????# ??????# #??? | | ???????????????????????????##+### ???????# #??? | | ??????###################### / ??????# #??? | | ????? #? ?????# #??? | | ????? % #?? ?????# #??? | | ????? !%* #??? ??### ###? | | ????? ######+### #? | | ????? ^ ## | | ?????? | | ??????# T | | ???????#################### | | ?????????????# !|g!@# ## | | ?????????????# !Ygb# ######### #? | | ?????????????# =gg%# #???????#########? | | ?????????????# !g=+ #????????????????? | | ?????????????# g # + ??????????? | | ?????????????# g/ # """ ""?????????? | | ?????????????# # #?"""????????????? | | ?????????????# # #??""????????????? | | ?????????????# # #????????????????? | | ?????????????# # #????????????????? | | ?????????????# + #????????????????? | | ?????????????# ##### #????????????????? | | ?????????????##############???? #????????????????? | | ??????????????????????????????? #????????????????? | | ??????????????????????????????? #????????????????? | | ??????????????????????????????? #????????????????? | | ??????????????????????????????? ????????????????? | | ?????????????????????????????????????????????????? | | ?????????????????????????????????????????????????? | | ?????????????????????????????????????????????????? | | ?????????????????????????????????????????????????? | | ?????????????????????????????????????????????????? | | ?????????????????????????????????????????????????? | | ?????????????????????????????????????????????????? | | ?????????????????????????????????????????????????? | +----------------------------------------------------+ Best States ------------- Heat Dissipation 42 Energy Generation 10 Energy Capacity 250 Matter Stores 300 Matter Capacity 300 Sight Range 16 Terrain Scan Range 16 Terrain Scan Density 10 Armor Coverage 375 Evasion (%) 44 Recoil Reduction 2 Item Schematics ----------------- None Robot Schematics ------------------ None Fabricated ------------ Nothing Repaired ---------- Nothing Alien Tech Used ----------------- None Achievements -------------- None Challenges ------------ None Game ------ Seed BiometalFusionMace Manual? 0 Play Time 00:10:55 Cumulative 40.6 hours Start 2025.06.16 @ 11:20:42 End 2025.06.16 @ 12:53:37 Sessions 3 Manual Loads 0 Difficulty Rogue Special Mode None Game No. 32 Rogue 20 Adventurer 6 Explorer 6 Win Type - Total 0 Types 0/0/0/0/0/0/0/0/0/0 Lore% 19 Gallery% 41 Achievement% 30 Wizard Run 0 Options --------- Layout 1 ASCII 0 Keyboard 0 Movement Numpad Keybinds 0 Fullscreen 1 Font 24/Smallcaps Map View 50x35 Zoom Use 0% Tactical HUD 1 Map Filters NONE Filters NONE Steam 1 RUN: 1a718fb3-a5a6-448c-abd5-047967beed16